Cogmind - Beta 17.1 @@@ ROGUE MODE // 2026.09.21 @ 13:31:15 Player: Zaje Result: Destroyed by S-10 Pest with Light Assault Rifle Performance ------------- Evolutions (0) 0 Regions Visited (2) 400 Robots Destroyed (24) 120 Value Destroyed (612) 612 Prototype IDs (0) 0 Alien Tech Used (0) 0 Bonus (0) 0 TOTAL SCORE: 1132 Bonus ------- None Cogmind --------- Core Integrity 0/250 Matter 266/300 Energy 200/200 System Corruption 0% Temperature Cool (0) Movement Walking (210) Ox1 Location -10/Subcaves Parts ------- > --- POWER (1) -------- Subdweller Power Source > --- PROPULSION (2) --- Makeshift Leg > --- UTILITY (2) ------ Large Storage Unit Signal Interpreter > --- WEAPON (2) ------- Subdweller Machine Gun Battle Cannon > --- INVENTORY (15) --- Flightbrick Large Storage Unit Sensor Array Hacking Suite Battle Rifle Light Cannon Maul Makeshift Axe Makeshift Axe Scrap Shield Fragment (45) Peak State ------------ > --- POWER ------------ Subdweller Power Source > --- PROPULSION ------- Makeshift Leg > --- UTILITY ---------- Large Storage Unit Signal Interpreter > --- WEAPON ----------- Battle Cannon Maul > --- INVENTORY -------- Flightbrick Large Storage Unit Sensor Array Hacking Suite Battle Rifle Subdweller Machine Gun Light Cannon Makeshift Axe Scrap Shield Fragment [Rating: 17] Favorites ----------- Power Subdweller Power Source Engine Subdweller Power Source Propulsion Light Treads Treads Light Treads Leg Makeshift Leg Utility Large Storage Unit Device Sensor Array Storage Large Storage Unit Processor Signal Interpreter Weapon Light Cannon Ballistic Gun Light Assault Rifle Ballistic Cannon Light Cannon Impact Weapon Maul Build | -11 -10 -10 ------- Run | Yrd Mat Sub Slots Evolved . | . . . Power . | . . . Propulsion . | . . . Utility . | . . . Weapon . | . . . Parts Attached 24 | 6 7 11 Power 7 | 1 1 5 Engine 7 | 1 1 5 Core . | . . . Reactor . | . . . Propulsion 4 | 2 . 2 Treads 3 | 2 . 1 Leg 1 | . . 1 Wheel . | . . . Hover . | . . . Flight . | . . . Utility 4 | 1 2 1 Device 1 | . 1 . Storage 2 | 1 1 . Processor 1 | . . 1 Hackware . | . . . Protection . | . . . Artifact . | . . . Weapon 9 | 2 4 3 Energy Gun . | . . . Energy Cannon . | . . . Ballistic Gun 3 | 2 . 1 Ballistic Cannon 5 | . 3 2 Launcher . | . . . Special Weapon . | . . . Impact Weapon 1 | . 1 . Slashing Weapon . | . . . Piercing Weapon . | . . . Special Melee Weapon . | . . . Unidentified Prototypes . | . . . Parts Lost 9 | . . 9 Power 3 | . . 3 Propulsion 3 | . . 3 Utility . | . . . Weapon 3 | . . 3 Highest Loss Streak 4 | . . 4 To Critical Strikes . | . . . Average Backups 7 | 3 6 8 Power . | . 1 . Propulsion . | 1 1 . Utility 2 | . . 2 Weapon 3 | . 2 4 Tool/Special . | . . . Unused Backups 10 | . 4 6 Power . | . . . Propulsion 3 | . 2 1 Utility 2 | . . 2 Weapon 5 | . 2 3 Tool/Special . | . . . Average Slot Usage (%) 87 | . 85 88 Engine 13 | . 14 13 Treads 13 | . 27 9 Leg 6 | . . 8 Device 1 | . . 1 Storage 14 | . 14 14 Processor 9 | . . 12 Ballistic Gun 5 | . 21 . Ballistic Cannon 17 | . 5 21 Impact Weapon 5 | . . 6 Peak Build Rating 17 | 6 9 17 Average Rating 11 | 5 6 12 On Entrance 4 | . 6 8 Avg Prop Armor Cover (%) 6 | . . 6 Naked Turns . | . . . Heaviest Build 34 | 12 34 31 Greatest Support 40 | 40 40 40 Greatest Overweight (x) 1 | 1 1 1 Average Overweight (x) . | . . . Largest Inventory Capacity 15 | 8 15 15 Average Capacity 13 | 7 9 15 Most Carried 14 | 4 10 14 Average Carried 9 | 3 6 10 Final Capacity 15 | 8 15 15 Final Carried 13 | 4 8 13 Class Distribution -------------------- 100% | Mutant Dominant Class ---------------- Mutant | -10/Materials Mutant | -10/Subcaves Resources | -11 -10 -10 ----------- Run | Yrd Mat Sub Matter Collected 921 | 277 165 479 Remotely . | . . . Salvage Created 682 | 76 422 184 Parts 51 | 7 36 8 Haulers Intercepted 2 | . 2 . Recyclers Shooed 1 | 1 . . Parts Field Recycled . | . . . Retrieved Matter . | . . . Parts Self-Destructed 8 | . . 8 Prevented . | . . . Parts Restored . | . . . Kills | -11 -10 -10 ------- Run | Yrd Mat Sub Combat Hostiles Destroyed 18 | . 10 8 Guns 10 | . 10 . Cannons 8 | . . 8 Classes Destroyed 8 | 2 5 1 Tunneler 1 | 1 . . Hauler 2 | . 2 . Recycler 1 | 1 . . Operator 1 | . 1 . Watcher 1 | . 1 . Swarmer 5 | . 5 . Grunt 5 | . 5 . Subdweller 8 | . . 8 Best Kill Streak 3 | 1 3 3 Combat Bots Only 3 | . 3 3 Max Kills in Single Turn 1 | 1 1 1 Gunslinging . | . . . Exploded . | . . . Melee . | . . . Uniques/NPCs Destroyed . | . . . Combat | -11 -10 -10 -------- Run | Yrd Mat Sub Hostile Shots Fired 124 | . 28 96 Missed 31 | . 6 25 Hits 93 | . 22 71 Projectile 93 | . 22 71 Critical Strikes 2 | . 1 1 Damage Taken 1640 | . 249 1391 Core 253 | . 46 207 Absorbed by Shields . | . . . Core Remaining (%) 100 | 100 . . Volleys Fired 101 | 10 52 39 Largest 2 | 2 2 2 Hottest 63 | 40 60 63 Shots Fired 200 | 20 104 76 Gun 114 | 20 92 2 Cannon 86 | . 12 74 Launcher . | . . . Special . | . . . Kinetic 200 | 20 104 76 Thermal . | . . . Explosive . | . . . Electromagnetic . | . . . Robot Hit Streak 14 | 3 13 14 Robot Miss Streak 3 | 2 3 2 Penetration Max . | . . . Secondary Targets 1 | . 1 . Max Gunslinging Chain 1 | . 1 . Shots Hit Robots 141 | 12 69 60 Core Hits 49 | 6 27 16 Critical Kills . | . . . Critical Parts Destroyed . | . . . Critical Strikes 3 | . . 3 Blast 3 | . . 3 Melee Attacks 39 | . 1 38 Impact 39 | . 1 38 Slashing . | . . . Piercing . | . . . Sneak Attacks 1 | . . 1 Combat Hostiles . | . . . Follow-up Attacks . | . . . Damage Inflicted 1677 | 100 583 994 Guns 623 | 95 528 . Cannons 1049 | . 55 994 Explosions . | . . . Melee . | . . . Ramming 5 | 5 . . Kinetic 1672 | 95 583 994 Thermal . | . . . Explosive . | . . . Electromagnetic . | . . . Impact . | . . . Slashing . | . . . Piercing . | . . . Highest Corruption . | . . . Average Corruption . | . . . Corruption Purged . | . . . Corruption Blocked . | . . . Overload Shots . | . . . Overflow Damage 17 | . 15 2 Projectiles 17 | . 15 2 Explosions . | . . . Melee . | . . . Knockbacks 12 | . . 12 Impact . | . . . Kinetic 12 | . . 12 Secondary . | . . . Self-Inflicted Damage . | . . . Shots . | . . . Rammed 1 | 1 . . Targets Rammed 1 | 1 . . Kicked . | . . . Crushed . | . . . Highest Temperature 21 | . 21 . Average Temperature 9 | . 9 . Received Heat Transfer 243 | . 114 129 Siege Activations . | . . . Martial Activations . | . . . Shielding Activations . | . . . Robots Disrupted . | . . . Combat Hostiles . | . . . Robots Corrupted . | . . . Combat Hostiles . | . . . Parts Fried . | . . . Impact Corruptions . | . . . Robots Melted . | . . . Combat Hostiles . | . . . Parts Melted . | . . . Heat Transferred . | . . . Parts Sabotaged . | . . . Parts Stolen . | . . . Parts Stripped . | . . . Power Chain Reactions . | . . . Alert | -11 -10 -10 ------- Run | Yrd Mat Sub Maximum Alert Level . | . . . Low Security (%) 100 | 100 100 . Level 1 . | . . . Level 2 . | . . . Level 3 . | . . . Level 4 . | . . . Level 5 . | . . . High Security . | . . . Max Security . | . . . Peak Influence 90 | 5 90 . Initial . | . . . Average 17 | . 19 . Influence Increases 353 | 10 298 45 Destroy 0b10 Robot/C 200 | . 200 . Destroy 0b10 Robot/NC 30 | 10 20 . Destroy Leader 36 | . 36 . Successful Hack 27 | . 27 . Disable Machine 15 | . 15 . Lose Combat Pursuer 45 | . . 45 Influence Decreases 309 | 10 298 1 Time Decay 309 | 10 298 1 Squads Dispatched 1 | . 1 . Investigation . | . . . Extermination . | . . . Reinforcement 1 | . 1 . Assault . | . . . Garrison . | . . . Intercept . | . . . Searches Triggered . | . . . Construction Impeded . | . . . Haulers Reinforced . | . . . Active Scanning Responses . | . . . Cargo Convoy Interrupts . | . . . Stealth | -11 -10 -10 --------- Run | Yrd Mat Sub Distress Signals . | . . . Communications Jammed . | . . . Distress Signals . | . . . Times Spotted 39 | . 24 15 Peak Tracking Total 6 | . 3 6 Tactical Retreats 1 | . . 1 Traps | -11 -10 -10 ------- Run | Yrd Mat Sub Traps Triggered 1 | . 1 . Indirectly . | . . . Trap Hack Attempts . | . . . Triggered . | . . . Disarmed 6 | . 6 . Reprogrammed . | . . . Reused . | . . . Traps Extracted . | . . . Installed . | . . . Triggered . | . . . Machines | -11 -10 -10 ---------- Run | Yrd Mat Sub Machines Disabled 1 | . 1 . Max in Single Turn 1 | . 1 . Machines Repaired . | . . . Machines Dismantled . | . . . Machines Sabotaged . | . . . Overloaded Fab Kills . | . . . Hacking | -11 -10 -10 --------- Run | Yrd Mat Sub Machines Accessed 9 | . 7 2 Terminals 7 | . 7 . Fabricators . | . . . Repair Stations . | . . . Recycling Units . | . . . Scanalyzers . | . . . Garrison Access . | . . . Total Hacks 14 | . 12 2 Successful 8 | . 6 2 Failed 6 | . 6 . Catastrophic . | . . . Database Lockouts . | . . . Manual 12 | . 12 . Terminals 12 | . 12 . Fabricators . | . . . Repair Stations . | . . . Recycling Units . | . . . Scanalyzers . | . . . Garrison Access . | . . . Terminal Hacks 5 | . 3 2 Record 1 | . . 1 Robot Analysis 2 | . 2 . Open Door 1 | . . 1 Disarm Traps 1 | . 1 . Fabricator Hacks . | . . . Repair Station Hacks . | . . . Recycling Unit Hacks . | . . . Scanalyzer . | . . . Garrison Access Hacks . | . . . Unauthorized Hacks 3 | . 3 . Terminals 3 | . 3 . Botnet 3 | . 3 . Fabricators . | . . . Repair Stations . | . . . Recycling Units . | . . . Scanalyzers . | . . . Garrison Access . | . . . Data Cores Recovered . | . . . Used . | . . . Hacking Detections 6 | . 6 . Full Trace Events . | . . . Feedback Events . | . . . Feedback Blocked . | . . . Robot Schematics Acquired . | . . . Robots Built . | . . . Authchips . | . . . Time . | . . . Total Robot Build Rating . | . . . Part Schematics Acquired . | . . . Parts Built . | . . . Authchips . | . . . Time . | . . . Total Part Build Rating . | . . . Part Studies Acquired . | . . . Parts Repaired . | . . . Time . | . . . Parts Recycled . | . . . Recycled Matter . | . . . Retrieved Matter . | . . . Retrieved Components . | . . . Parts Scanalyzed . | . . . Part Schematics Acquired . | . . . Parts Damaged . | . . . Bothacking | -11 -10 -10 ------------ Run | Yrd Mat Sub Used RIF Installer . | . . . Robots Hacked . | . . . Non-combat . | . . . Combat . | . . . Robot Hacks Applied . | . . . Relay Couplers Released . | . . . Fabnet Peak Effective % . | . . . Robots Rewired . | . . . Allies Hacked . | . . . Hacks Repelled . | . . . Allies | -11 -10 -10 -------- Run | Yrd Mat Sub Total Allies . | . . . Largest Group . | . . . Highest-Rated Group . | . . . Highest-Rated Ally . | . . . Total Orders . | . . . Ally Attacks . | . . . Total Damage . | . . . Kills . | . . . Allies Corrupted . | . . . Allies Melted . | . . . Intel | -11 -10 -10 ------- Run | Yrd Mat Sub Active Infowar (turns) 608 | . 76 532 Sensors 608 | . 76 532 Robot Analysis Total 2 | . 2 . Derelict Logs Recovered 1 | . . 1 Drone Launches . | . . . Drone Recoveries . | . . . Exploration | -11 -10 -10 ------------- Run | Yrd Mat Sub Turns Passed 5336 | 143 1192 4001 Spaces Moved 2509 | 71 609 1829 Core 11 | 11 . . Treads 1544 | 60 609 875 Legs 954 | . . 954 Wheels . | . . . Hover . | . . . Flight . | . . . Fastest Speed 50 | 50 160 160 Average Speed 191 | 145 160 203 Slowest Speed 240 | 160 240 240 Overloaded Moves . | . . . Propulsion Burnouts . | . . . Robots Hopped . | . . . Potential Cave-ins . | . . . Cave-ins Triggered . | . . . Exploration Rate (%) 57 | 3 84 84 Regions Visited 2 Branch Regions 1 Pre-discovered Areas . | . . . Known Exits Taken . | . . . Unknown Exits Taken 2 | 1 1 . Scrap Searched . | . . . Spaces Dug 2 | . . 2 Terrain Destroyed 2 | . . 2 Melee 2 | . . 2 Projectile . | . . . AOE . | . . . Terrain Rammed . | . . . Walls Destroyed . | . . . Machines Disabled . | . . . Actions | -11 -10 -10 --------- Run | Yrd Mat Sub Total 2791 | 91 740 1960 Wait 69 | . 48 21 Move 2507 | 70 608 1829 Hop . | . . . Pick Up 24 | 4 10 10 Fast Attach 14 | 6 5 3 Attach 7 | . 1 6 Detach 4 | . 3 1 Swap 12 | . 3 9 Drop 13 | . 9 4 Fire 101 | 10 52 39 Melee 39 | . 1 38 Ram . | . . . Kick . | . . . Crush 1 | 1 . . Escape Stasis . | . . . Rewire . | . . . Trap . | . . . Miscellaneous . | . . . Route ------- -11/Scrapyard -10/Materials (discovered 4 exits: [*Mat x2] / [*Min] / *Sub) -10/Subcaves (discovered 2 exits: *Mat x2) History --------- Turn | Location | Event 13 | -11/Scrapyard | Discovered new exit (range 16) 144 | -11/Scrapyard | Entered Materials 309 | -10/Materials | Discovered new exit (range 4) 316 | -10/Materials | Build established: Mutant 568 | -10/Materials | Discovered new exit (range 10) 790 | -10/Materials | Discovered new exit (range 10) 1314 | -10/Materials | Discovered new exit (range 10) 1336 | -10/Materials | Entered Subcaves 1337 | -10/Subcaves | Approached by a straggling Scientist 1349 | -10/Subcaves | Learned Materials interactive machine intel 1485 | -10/Subcaves | A swath of the cavern ceiling suddenly collapsed 1646 | -10/Subcaves | A swath of the cavern ceiling suddenly collapsed 1715 | -10/Subcaves | Shifting Twisted Machinery released Sub. Machine Gun 1751 | -10/Subcaves | Shifting Twisted Machinery released Mak. Axe 1752 | -10/Subcaves | Shifting Twisted Machinery released Sub. Machine Gun 1788 | -10/Subcaves | Discovered new exit (range 14) 1851 | -10/Subcaves | Shifting Twisted Machinery released Shrapnel Trap 1869 | -10/Subcaves | Identified exit to Materials 3186 | -10/Subcaves | A Subdweller sparked back to life 3186 | -10/Subcaves | A Subdweller sparked back to life 3191 | -10/Subcaves | Core integrity fell below 50% 3228 | -10/Subcaves | Core integrity fell below 20% 3265 | -10/Subcaves | Lost 4 parts (1p1n2w) 3282 | -10/Subcaves | Found Prototype Flight Unit 4583 | -10/Subcaves | Shifting Twisted Machinery released Sub. Power Source 4584 | -10/Subcaves | Shifting Twisted Machinery released Mak. Axe 4901 | -10/Subcaves | Ambushed by Subdwellers from Twisted Machinery 5007 | -10/Subcaves | Discovered exit to Materials (range 15) 5337 | -10/Subcaves | Destroyed by S-10 Pest with Light Assault Rifle Last Messages --------------- Subatomizers are really quite dangerous, especially when stimulated during the collection process in preparation for SEP insertion. Secure containment is priority number one! Although mostly just a persistent nuisance in their natural Subcaves environment where a certain balance has been achieved, there is a high probability that sudden introduction into previously unexposed areas could cause more extreme side effects. Take all precautions to prevent this from happening. 04901_ G0-9MN(R) emerges from the Twisted Machinery. 04970_ Acquired 10 matter. 05007_ EXIT=FOUND: MATERIALS 05124_ Subatomizers dissect the Sub. Monowheel. 05227_ KZ-7ZC(R): "WEHOME!" 05252_ Sub. Power Source shoots sparks and powers down. 05253_ Dropped Hacking Suite. 05255_ Dropped Broken Sub. Power Source. 05260_ Acquired Hacking Suite. 05321_ Subatomizers dissect the Sub. Power Source. 05335_ Destroyed Flight Unit. 05335_ S-10 Pest knocked back. 05336_ Subatomizers dissect the Sub. Power Source. Map ----- +----------------------------------------------------+ | | | | | ?????????????????????????????????????????????????? | | ?????????????????????????????????????????????????? | | ?????????????????????????????????????????????????? | | ?????????????????????????????????????????????????? | | ?????????????????????????????????????????????????? | | ?????????????????????????????????????????????????? | | ?????????????????????????????????????????????????? | | ?????????????????????????????????????????????????? | | ?????????????????????????????????????????????????? | | ?????????????????????????????????????????????????? | | ??????????????????????????????????????????????#### | | ?????????????????????????????????????????????? | | ?????????????????????????????????????????????? # | | ?????????????????????????????????????????????## " | | ???????????????????????????#?######????###?###" | | ???????????????##??????##"## # # ###### ### | | ???????????####"######## " # | | ??????????## # # ## """" " * ## | | ??????????# ""#"###" " "### ## | | ########??# ""#???### ""#?##### | | # # #### # ## # # ""#?????## " #?????# #### | | ####?### &%* #####?## "##?????####### | | # ####???## =&&! "#"### ##???????## | | ######## #?????# &% s@ #????????# | | ??????# #????# &&s """ # ##????????## | | ?????### ##???# &ss""### #####????????### ### | | ????## ##???## &%&%"#### ##?????????### # | | ???## ##???# & &"## ##????????# | | ???# ##### #### #???????#" | | ??## ???## #######??#" ### ## | | ?## ???## # ## #??# ???##? | | ## ###### ???# #??###??????? | | # ##???? ???# ##????#?????? | | # #####????? ???## # #?? #?????? | | ##???????? ????####### ### #?????? | | #????????? ?????????### " #?????? | | #### #????????" "?????????## ##?????? | | ???## ###????????"?????????##% #?????? | | ????### #????????????????### & #?????? | | ####??## ##???????????###### % ######% ##?????? | | # ##??# ##??????????## % ##???? #?????? | | #### #######????# % #????? #?????? | | #?#" ###### #???? #?????? | | ### ## ## # ##????? #?????? | | % ##### # ### ##???????#?????? | | ### # #### ###??????????????? | | #?## #????????????????? | | # #????????????????? | +----------------------------------------------------+ Best States ------------- Heat Dissipation 25 Energy Generation 15 Energy Capacity 250 Matter Stores 300 Matter Capacity 300 Sight Range 16 Robot Scan Range 14 Terrain Scan Density 10 Evasion (%) 40 Recoil Reduction 2 Item Schematics ----------------- None Robot Schematics ------------------ None Fabricated ------------ Nothing Repaired ---------- Nothing Studied --------- None Alien Tech Used ----------------- None Achievements -------------- None Challenges ------------ None Game ------ Seed ThunderMappingComputer Manual? 0 Play Time 00:26:25 Cumulative 21.6 hours Start 2026.09.21 @ 12:53:34 End 2026.09.21 @ 13:31:15 Sessions 1 Manual Loads 0 Difficulty Rogue Special Mode None Game No. 33 Rogue 33 Adventurer 0 Explorer 0 Win Type - Total 1 Types 1/0/0/0/0/0/0/0/0/0 Lore% 18 Gallery% 19 Achievement% 20 Wizard Run 0 Options --------- Layout 0 ASCII 0 Keyboard 1 Movement Vi Keybinds 1 Fullscreen 1 Font 24/Smallcaps Map View 76x50 Zoom Use 0% Tactical HUD 1 Map Filters NONE Filters NONE Steam 1 RUN: a4631576-b16f-4155-bac2-e6835426f9ee